bitfinex-derivatives/quotes_ETHF0:USTF0_20260310
["timestamp","ask_amount","ask_price","bid_price","bid_amount"]
[1773170638663,0.57182749,2039.4,2038.2,0.57127394]
[1773170639362,0.57182749,2039.6,2038.4,0.57127394]
[1773170639566,0.57600872,2039.7,2038.4,0.57127394]
[1773170641668,0.57600872,2039.7,2038.6,0.57127394]
[1773170641868,0.57600872,2039.7,2038.8,0.57127394]
[1773170642064,0.57182749,2039.5,2038.5,0.57127394]
[1773170642268,0.81697749,2039.4,2038.5,0.57127394]
[1773170642669,0.57182749,2039.3,2038.5,0.57127394]
[1773170644368,0.57182749,2039.3,2038.6,0.57127394]
[1773170644973,0.24515,2039.4,2038.2,0.57127394]
[1773170644974,0.57182749,2038.9,2038.2,0.57127394]
[1773170645467,0.57182749,2039.4,2038.2,0.57127394]
[1773170645661,0.57182749,2039.2,2038.2,0.57127394]
[1773170648473,4.3164937,2039.5,2038.1,0.57127394]
[1773170648474,0.57182749,2039.0,2038.1,0.57127394]
[1773170650072,0.57182749,2039.0,2038.0,6.43092029]
[1773170650472,0.57182749,2039.0,2038.0,7.00219423]
[1773170650672,0.57182749,2039.0,2038.1,0.57127394]
[1773170651174,0.57182749,2038.8,2038.0,0.00592029]
[1773170651374,0.57182749,2038.8,2038.0,0.57719423]
[1773170652171,0.57182749,2038.8,2038.0,0.00592029]
[1773170652366,0.57182749,2038.8,2038.0,0.57719423]
[1773170654869,4.0713437,2039.2,2037.5,0.57127394]
[1773170654870,0.57182749,2038.6,2037.5,0.57127394]
[1773170655074,0.81711749,2038.3,2037.5,0.57127394]
[1773170655678,0.57182749,2038.5,2037.5,0.57127394]
[1773170656175,0.57182749,2038.5,2037.5,0.57611537]
[1773170656478,0.57182749,2038.5,2037.7,0.57127394]
[1773170657679,0.81706749,2038.7,2037.7,0.57127394]
[1773170657980,0.57182749,2038.2,2037.6,0.57127394]
[1773170658274,0.57182749,2038.2,2037.7,0.57127394]
[1773170658275,0.00553086,2038.2,2037.7,0.57127394]
[1773170658883,0.57735835,2038.2,2037.7,0.57127394]
[1773170659178,0.57735835,2038.2,2037.7,0.57270466]
[1773170659477,0.00553086,2038.2,2037.7,0.57270466]
[1773170660484,0.558428,2038.2,2037.6,6.426]
[1773170660782,0.803728,2038.2,2037.5,0.00484143]
[1773170661088,0.55289714,2037.9,2037.2,6.427]
[1773170661987,0.55289714,2037.9,2037.2,6.43154002]
[1773170662383,0.55289714,2037.9,2037.2,7.00424468]
[1773170662584,0.55289714,2037.9,2037.3,0.57270466]
[1773170662889,0.55289714,2038.1,2037.3,0.57270466]
[1773170664086,0.00553086,2038.2,2037.3,0.57270466]
[1773170664286,0.558428,2038.2,2037.3,0.57270466]
[1773170664487,0.558428,2038.2,2037.4,6.428]
[1773170664789,0.558428,2038.2,2037.5,0.57270466]
[1773170665486,0.00553086,2038.2,2037.5,0.57270466]
[1773170669394,0.558428,2038.2,2037.7,0.57270466]
[1773170669593,0.00553086,2038.2,2037.7,7.00070466]
[1773170669790,0.558428,2038.2,2037.7,0.57270466]
[1773170669992,0.558428,2038.2,2037.7,7.00070466]
[1773170670484,0.558428,2038.2,2037.7,0.57270466]
[1773170670690,0.00553086,2038.2,2037.7,0.57270466]
[1773170671591,0.55289714,2038.8,2037.7,0.57270466]
[1773170672590,0.55672496,2038.8,2037.7,0.57270466]
[1773170673295,0.55672496,2038.8,2037.9,0.57270466]
[1773170673498,0.00382782,2038.8,2037.9,0.57270466]
[1773170674086,0.00382782,2038.8,2037.6,6.428]
[1773170674087,0.00382782,2038.8,2038.1,0.57270466]
[1773170674290,0.55289714,2039.4,2038.3,0.57270466]
[1773170674794,4.31322084,2039.9,2038.2,6.428]
[1773170674795,0.55289714,2039.8,2038.5,0.57270466]
[1773170675394,0.55770265,2039.8,2038.5,0.57270466]
[1773170676993,0.55289714,2039.6,2038.5,0.57270466]
[1773170680299,0.55770265,2039.8,2038.7,0.57270466]
[1773170680602,0.55770265,2039.8,2038.9,0.57270466]
[1773170681704,0.55770265,2039.8,2039.0,0.57270466]
[1773170688397,0.58570382,2039.5,2038.7,0.0046074]
[1773170688597,0.00480551,2039.8,2038.7,0.0046074]
[1773170688598,0.58570382,2039.3,2038.7,0.0046074]
[1773170692202,0.58570382,2039.3,2038.7,0.55009037]
[1773170692410,0.58580949,2039.5,2038.7,0.55009037]
[1773170698609,0.58580949,2039.3,2038.7,0.0046074]
[1773170699209,0.58580949,2039.1,2038.7,0.0046074]
[1773170700310,0.58580949,2039.1,2038.5,0.54548297]
[1773170700508,0.58580949,2038.9,2038.1,0.54548297]
[1773170700709,0.58580949,2038.9,2037.9,0.54548297]
[1773170700910,0.58580949,2038.9,2038.0,0.54548297]
[1773170701110,0.58580949,2038.7,2038.0,0.54548297]
[1773170701310,0.58580949,2038.5,2038.0,0.00453168]
[1773170701715,10.10020084,2039.0,2038.0,0.55001465]
[1773170701716,0.58580949,2038.9,2038.0,0.55001465]
[1773170701915,0.58580949,2038.7,2038.0,0.55001465]
[1773170703620,0.58580949,2038.7,2038.0,0.00453168]
[1773170704317,0.58580949,2038.6,2037.7,0.54548297]
[1773170704512,0.58580949,2038.4,2037.7,0.54548297]
[1773170705419,0.58580949,2038.4,2037.7,0.5501885]
[1773170705619,0.58580949,2038.8,2037.7,0.5501885]
[1773170708022,0.58580949,2038.8,2037.8,0.54548297]
[1773170711223,0.83101949,2039.0,2037.8,0.54548297]
[1773170711423,0.58580949,2039.0,2037.8,0.54548297]
[1773170711828,0.58580949,2038.8,2037.8,0.54548297]
[1773170712028,0.58580949,2038.4,2037.8,0.54548297]
[1773170712720,0.58580949,2038.4,2037.7,0.00470553]
[1773170712925,0.58580949,2038.4,2037.7,0.5501885]
[1773170713628,0.58580949,2038.4,2037.7,0.00470553]
[1773170715330,0.58580949,2038.2,2037.7,0.00470553]
[1773170715624,0.58928783,2038.2,2037.7,0.00470553]
[1773170716230,0.58928783,2038.2,2037.1,6.427]
[1773170716231,0.58580949,2038.0,2037.1,0.54548297]
[1773170717332,0.58580949,2037.8,2037.1,0.00515633]
[1773170717822,0.58580949,2037.6,2036.4,0.54548297]
[1773170718024,0.58580949,2037.6,2036.6,0.54548297]
[1773170718728,0.58580949,2037.6,2036.6,0.55115108]
[1773170720732,0.58580949,2037.6,2036.7,0.55008942]
[1773170721430,0.60142059,2037.0,2036.3,0.55008942]
[1773170721725,0.60142059,2036.8,2036.1,0.55008942]
[1773170722127,0.60142059,2037.0,2036.1,0.55008942]
[1773170722432,0.60142059,2037.0,2036.1,0.55557555]
[1773170723633,0.60142059,2037.0,2036.2,0.55008942]
[1773170724022,0.60142059,2037.0,2036.1,0.00548613]
[1773170724230,0.84687059,2037.0,2036.1,0.00548613]
[1773170724428,0.60142059,2036.9,2036.1,0.00548613]
[1773170725633,0.60142059,2036.9,2036.1,0.55557555]
[1773170729336,0.60142059,2036.9,2036.1,0.00548613]
[1773170729929,0.60142059,2036.7,2035.8,0.55008942]
[1773170730127,3.13063312,2036.8,2035.6,0.55008942]
[1773170730128,0.60142059,2036.5,2035.6,0.55008942]
[1773170731035,0.60600938,2036.5,2035.6,0.55636616]
[1773170731334,0.60600938,2036.5,2035.6,0.00627674]
[1773170731736,0.60600938,2036.5,2035.6,0.55636616]
[1773170733238,0.60142059,2037.0,2035.8,0.55008942]
[1773170733636,0.60142059,2036.8,2035.7,0.55008942]
[1773170734237,0.60684275,2036.8,2035.7,0.55008942]
[1773170735739,0.60684275,2036.8,2035.8,0.55008942]
[1773170736238,0.60684275,2036.8,2035.9,0.55008942]
[1773170740647,0.60142059,2036.6,2035.6,0.55636616]
[1773170741746,0.60142059,2036.4,2035.6,0.55636616]
[1773170742349,0.60142059,2036.4,2035.6,0.00627674]
[1773170742849,0.60142059,2036.4,2035.6,0.55636616]
[1773170745549,0.60142059,2036.0,2034.7,0.55008942]
[1773170745754,0.60142059,2035.6,2034.3,0.55008942]
[1773170746053,0.60142059,2035.4,2034.3,0.55008942]
[1773170746456,0.60142059,2035.4,2034.3,0.55478959]
[1773170748158,0.56450048,2035.2,2034.3,0.55478959]
[1773170748354,0.56450048,2035.0,2034.3,0.00470017]
[1773170748556,0.56450048,2034.8,2033.3,0.57507975]
[1773170749258,0.56450048,2034.6,2033.3,0.57507975]
[1773170749455,0.56450048,2034.6,2033.3,0.58005633]
[1773170749659,0.57035907,2035.1,2033.5,0.58483416]
[1773170752161,0.57035907,2035.1,2033.7,0.58483416]
[1773170752363,0.57035907,2035.1,2033.9,0.58483416]
[1773170754261,0.57035907,2035.1,2034.1,0.58483416]
[1773170754456,0.57035907,2034.9,2033.7,0.58483416]
[1773170756964,0.57035907,2035.1,2033.7,0.58483416]
[1773170757857,0.57035907,2035.1,2033.9,0.58483416]
[1773170758166,0.57035907,2035.1,2034.1,0.58483416]
[1773170758766,0.57035907,2035.1,2034.1,0.59093754]
[1773170760766,0.57035907,2035.1,2034.1,0.00610338]
[1773170761065,0.57035907,2035.1,2034.1,7.02193754]
[1773170761265,0.00350579,2035.2,2034.1,0.00610338]
[1773170761266,0.24569,2034.9,2034.1,0.00610338]
[1773170761464,0.57035907,2034.8,2034.1,0.00610338]
[1773170762468,0.57035907,2034.8,2033.7,7.01583416]
[1773170762976,0.57035907,2034.8,2033.8,0.58447227]
[1773170763365,0.57035907,2034.8,2033.8,0.59073669]
[1773170765274,0.57035907,2034.8,2033.8,0.00626442]
[1773170766374,0.57035907,2034.8,2033.8,0.59109858]
[1773170767077,0.57035907,2034.2,2033.2,0.57829979]
[1773170767375,0.57035907,2034.2,2032.7,0.92674864]
[1773170767376,0.57035907,2034.0,2032.8,0.57829979]
[1773170768174,0.57035907,2034.0,2032.8,0.58187171]
[1773170768370,0.57035907,2034.0,2033.0,0.57829979]
[1773170768971,0.57035907,2034.0,2033.0,7.00829979]
[1773170769372,0.57035907,2034.0,2033.0,0.57829979]
[1773170770073,0.57035907,2033.8,2032.8,7.01940608]
[1773170770374,0.24582,2033.9,2032.4,0.24599]
[1773170770375,0.57035907,2033.2,2032.4,0.58483416]
[1773170770571,0.57035907,2033.2,2032.2,7.01583416]
[1773170771279,0.57035907,2033.2,2032.2,0.00611562]
[1773170771280,0.57035907,2033.0,2032.2,0.00611562]
[1773170772173,0.57035907,2032.6,2031.4,0.58483416]
[1773170773174,0.57035907,2032.6,2031.4,0.59116905]
[1773170774473,0.57035907,2032.6,2031.4,0.00633489]
[1773170774675,0.57035907,2032.6,2031.4,0.59116905]
[1773170775475,0.57035907,2032.4,2031.4,0.00633489]
[1773170775681,0.57035907,2032.2,2031.4,0.00633489]
[1773170775975,0.57035907,2032.2,2031.4,0.59116905]
[1773170780682,0.57035907,2032.2,2031.0,0.55279799]
[1773170781677,0.57035907,2032.2,2031.0,0.55685449]
[1773170782076,0.57035907,2032.2,2031.0,0.0040565]
[1773170782277,0.58318939,2032.0,2031.0,0.55685449]
[1773170783879,0.58318939,2032.0,2031.0,0.0040565]
[1773170785681,0.58318939,2032.0,2031.0,0.55685449]
[1773170785879,0.58318939,2031.9,2030.5,0.55279799]
[1773170786181,6.05298,2032.0,2030.0,0.55279799]
[1773170786182,0.58318939,2030.9,2030.0,0.55279799]
[1773170786388,0.58318939,2031.2,2030.0,0.55279799]
[1773170786683,0.58318939,2031.2,2029.9,0.24629]
[1773170786684,0.58318939,2031.2,2030.2,0.55279799]
[1773170786883,0.58675289,2031.2,2030.2,0.55708952]
[1773170790985,0.58318939,2031.0,2030.2,0.00429153]
[1773170791182,0.58318939,2030.8,2030.0,0.55279799]
[1773170791386,0.58318939,2030.4,2029.2,0.55279799]
[1773170791584,6.05625,2030.9,2029.2,0.55279799]
[1773170791585,0.58318939,2030.2,2029.2,0.55279799]
[1773170792289,0.58318939,2030.2,2029.2,0.55644258]
[1773170792488,0.58318939,2030.2,2029.2,0.00364459]
[1773170793084,0.58318939,2030.2,2029.2,0.55644258]
[1773170793487,0.58318939,2030.6,2029.2,0.55644258]
[1773170793788,0.58318939,2030.6,2029.4,0.55279799]
[1773170794189,0.58318939,2030.6,2029.6,0.55279799]
[1773170794391,0.58318939,2031.1,2029.6,0.55279799]
[1773170794894,0.58318939,2031.1,2029.8,0.55279799]
[1773170795490,0.58318939,2031.1,2030.0,0.55279799]
[1773170796092,0.0035635,2031.2,2030.0,0.55279799]
[1773170796282,0.58675289,2031.2,2030.2,0.55279799]
[1773170796486,0.0035635,2031.2,2030.4,0.55279799]
[1773170796893,0.58675289,2031.2,2030.4,0.55279799]
[1773170797097,0.0035635,2031.2,2030.4,0.55279799]
[1773170797298,0.58318939,2031.6,2030.4,0.55279799]
[1773170797992,0.58318939,2032.2,2030.6,0.55279799]
[1773170798194,0.58898895,2032.2,2030.6,0.55279799]
[1773170798493,0.58318939,2031.8,2030.5,0.55279799]
[1773170798991,6.05327,2031.9,2030.5,0.55279799]
[1773170798992,0.58318939,2031.6,2030.5,0.55279799]
[1773170802291,0.58318939,2032.0,2030.7,0.55279799]
[1773170802495,0.58318939,2032.0,2030.8,0.55279799]
[1773170803095,0.58318939,2031.8,2030.8,0.55279799]
[1773170808791,0.58874642,2031.6,2030.8,0.55279799]
[1773170808995,0.58874642,2031.4,2030.7,0.003732]
[1773170809604,0.5607405,2031.2,2030.4,0.56956425]
[1773170810400,0.5607405,2030.8,2029.8,0.56956425]
[1773170810600,0.5607405,2030.8,2029.8,0.57409344]
[1773170811703,0.5607405,2031.2,2029.8,0.57409344]
[1773170811901,0.5607405,2031.2,2029.9,0.56956425]
[1773170812298,0.5607405,2031.2,2030.1,0.56956425]
[1773170813099,0.5607405,2031.4,2030.3,0.56956425]
[1773170813301,0.5607405,2031.4,2030.5,0.56956425]
[1773170813798,0.5607405,2031.6,2030.5,0.56956425]
[1773170814108,0.5607405,2032.0,2030.7,0.56956425]
[1773170814311,0.5607405,2032.0,2030.9,0.56956425]
[1773170814706,0.5607405,2032.0,2031.0,0.56956425]
[1773170816204,0.5607405,2032.0,2031.1,0.56956425]
[1773170819713,0.56654006,2032.2,2031.3,0.56956425]
[1773170819915,0.56654006,2032.2,2031.3,0.57532189]
[1773170821114,0.24607,2031.8,2031.3,0.00575764]
[1773170821312,0.5607405,2031.7,2030.9,0.56956425]
[1773170822413,0.5607405,2031.5,2030.9,0.00386326]
[1773170822609,0.5607405,2031.5,2030.9,0.57342751]
[1773170822814,4.31417084,2032.1,2030.9,0.57342751]
[1773170823015,0.5607405,2031.9,2030.9,0.57342751]
[1773170823614,0.5607405,2031.7,2030.9,0.57342751]
[1773170824421,0.5607405,2031.5,2030.9,0.00386326]
[1773170824621,0.5607405,2031.3,2030.5,0.56956425]
[1773170825609,0.5607405,2031.3,2030.5,0.57460566]
[1773170825814,0.5607405,2031.5,2030.5,0.57460566]
[1773170828717,0.5607405,2031.3,2030.5,0.57460566]
[1773170829826,0.5607405,2031.8,2030.5,0.57460566]
[1773170830520,0.5607405,2031.8,2030.9,0.56956425]
[1773170830726,0.5607405,2032.0,2031.1,0.56956425]
[1773170831616,0.5607405,2032.0,2031.3,0.56956425]
[1773170832321,0.5607405,2032.0,2030.7,10.25287962]
[1773170832322,0.5607405,2032.0,2031.1,0.56956425]
[1773170833521,0.56654006,2032.2,2031.1,0.56956425]
[1773170836521,0.00579956,2032.2,2031.3,0.56956425]
[1773170836724,0.56654006,2032.2,2031.3,0.56956425]
[1773170837024,0.00579956,2032.2,2031.3,0.56956425]
[1773170837622,0.00579956,2032.2,2031.5,0.56956425]
[1773170838220,0.56654006,2032.2,2031.5,0.56956425]
[1773170839225,0.24606,2031.9,2030.8,0.56956425]
[1773170839427,0.57652923,2031.8,2030.8,0.56956425]
[1773170839923,0.57652923,2031.8,2030.6,6.432]
[1773170839924,0.57652923,2032.0,2031.0,0.55568783]
[1773170840124,0.57652923,2032.0,2030.9,0.24618]
[1773170840125,0.57652923,2032.0,2031.2,0.55568783]
[1773170840719,0.58232879,2032.2,2031.2,0.55568783]
[1773170841727,0.00579956,2032.2,2031.2,0.55568783]
[1773170842229,0.00579956,2032.2,2031.4,0.55568783]
[1773170842728,0.00579956,2032.2,2031.6,0.55568783]
[1773170842927,0.00579956,2032.2,2031.7,0.55568783]
[1773170843620,0.57652923,2032.5,2031.4,0.55568783]
[1773170843826,6.05107,2032.6,2031.4,0.55568783]
[1773170843827,0.57652923,2032.1,2031.4,0.55568783]
[1773170844028,0.57652923,2032.1,2031.2,6.98768783]
[1773170844326,0.57652923,2032.1,2031.3,0.55568783]
[1773170844527,0.58065627,2032.1,2031.3,0.55568783]
[1773170845026,0.58065627,2032.1,2031.2,6.432]
[1773170845027,0.57652923,2031.9,2031.0,6.432]
[1773170845230,0.57652923,2031.9,2031.1,0.55568783]
[1773170846232,0.57652923,2031.9,2031.2,0.55568783]
[1773170847632,0.58065627,2032.1,2031.2,0.55568783]
[1773170848430,0.57652923,2031.8,2031.2,0.55568783]
[1773170849226,0.57652923,2031.8,2031.0,0.55568783]
[1773170850735,0.57652923,2031.6,2030.8,0.55568783]
[1773170851133,0.57652923,2031.4,2030.8,0.55568783]
[1773170852333,0.57652923,2031.4,2030.6,0.55568783]
[1773170852836,0.57652923,2031.4,2030.6,6.98868783]
[1773170853026,0.57652923,2031.4,2030.6,0.55568783]
[1773170854339,0.57652923,2031.2,2030.5,0.00504141]
[1773170854833,0.57652923,2031.2,2030.5,0.56072924]
[1773170855338,4.06829587,2031.9,2030.5,0.56072924]
[1773170855339,0.57652923,2031.4,2030.5,0.56072924]
[1773170855935,0.57652923,2031.4,2030.7,0.55568783]
[1773170856339,0.57652923,2032.0,2030.9,0.55568783]
[1773170857039,0.58065627,2032.1,2030.9,0.55568783]
[1773170857436,0.57652923,2032.0,2030.9,0.55568783]
[1773170857742,0.57652923,2032.0,2031.1,0.55568783]
[1773170858940,0.00412704,2032.1,2031.1,0.55568783]
[1773170859139,0.57652923,2032.0,2031.3,0.55568783]
[1773170859438,0.24606,2031.9,2031.1,0.55568783]
[1773170859637,0.57652923,2031.8,2031.1,0.55568783]
[1773170860338,0.57652923,2031.8,2030.9,0.55568783]
[1773170860838,0.24605,2032.0,2031.1,0.55568783]
[1773170860839,0.57652923,2032.0,2031.1,0.55568783]
[1773170861036,0.00412704,2032.1,2031.1,0.55568783]
[1773170861432,0.00412704,2032.1,2031.3,0.55568783]
[1773170861637,0.00412704,2032.1,2031.5,0.55568783]
[1773170862941,0.57652923,2032.3,2031.5,0.55568783]
[1773170863937,0.57652923,2032.3,2031.6,0.55568783]
[1773170864143,0.5820694,2032.3,2031.5,6.434]
[1773170864444,0.5820694,2032.3,2031.4,6.98968783]
[1773170864638,0.57652923,2032.1,2031.2,6.98968783]
[1773170864838,0.57652923,2032.1,2031.3,0.55568783]
[1773170871049,0.57652923,2032.1,2031.3,6.98968783]
[1773170871247,0.57652923,2032.1,2031.4,0.56692131]
[1773170872744,0.25155017,2032.3,2031.4,0.56692131]
[1773170872745,0.55775288,2032.3,2031.4,0.56692131]
[1773170873849,0.55221271,2032.7,2031.5,0.56692131]
[1773170874940,0.55595036,2032.7,2031.5,0.56692131]
[1773170875144,0.55221271,2032.5,2031.7,0.56692131]
[1773170882956,0.55595036,2032.7,2031.7,0.56692131]
[1773170883851,0.55595036,2032.7,2031.8,6.434]
[1773170884053,0.55595036,2032.7,2031.9,0.56692131]
[1773170885953,0.00373765,2032.7,2031.9,0.56692131]
[1773170886151,0.55595036,2032.7,2031.9,0.56692131]
[1773170886458,0.55595036,2032.7,2032.0,0.56692131]
[1773170886758,0.55595036,2032.7,2032.0,0.57039399]
[1773170887860,0.00373765,2032.7,2032.0,0.57039399]
[1773170888455,0.55595036,2032.7,2032.0,0.57039399]
[1773170888763,0.55595036,2032.7,2032.0,7.00439399]
[1773170889359,0.55595036,2032.7,2032.1,0.56692131]
[1773170890056,0.00373765,2032.7,2032.1,0.56692131]
[1773170890262,0.55221271,2032.9,2032.1,0.56692131]
[1773170890758,0.55221271,2032.9,2032.2,0.56692131]
[1773170891158,0.5562805,2032.9,2032.2,0.56692131]
[1773170892862,0.5562805,2032.9,2032.0,7.00439399]
[1773170893561,0.5562805,2032.9,2032.1,0.56692131]
[1773170895957,0.00406779,2032.9,2032.1,0.56692131]
[1773170896559,0.5562805,2032.9,2032.1,0.56692131]
[1773170897868,0.5562805,2032.9,2032.0,0.00347268]
[1773170898060,0.55221271,2032.7,2032.0,0.00347268]
[1773170898762,0.55221271,2032.5,2031.8,0.56692131]
[1773170899467,0.60053716,2032.8,2031.8,0.56692131]
[1773170899761,0.60053716,2032.8,2032.0,0.56909675]
[1773170899961,0.60460495,2032.9,2032.2,0.56909675]
[1773170901465,0.00406779,2032.9,2032.2,0.56909675]
[1773170901862,0.60053716,2033.4,2032.3,0.56909675]
[1773170902068,0.60053716,2033.6,2032.7,0.56909675]
[1773170902262,0.60053716,2033.6,2032.9,0.56909675]
[1773170902469,0.60053716,2033.6,2032.7,0.56909675]
[1773170903064,0.60403556,2033.6,2032.7,0.56909675]
[1773170904067,0.0034984,2033.6,2032.7,0.56909675]
[1773170904264,0.60403556,2033.6,2032.7,0.56909675]
[1773170905471,0.0034984,2033.6,2032.9,0.56909675]
[1773170905669,0.60053716,2034.4,2032.9,0.56909675]
[1773170906668,0.60053716,2034.4,2032.6,6.435]
[1773170906669,0.60651125,2034.4,2033.1,0.56909675]
[1773170906864,0.60651125,2034.4,2033.3,0.56909675]
[1773170907066,0.60651125,2034.4,2033.4,7.00409675]
[1773170907771,0.60651125,2034.4,2033.5,0.56909675]
[1773170909267,0.00597409,2034.4,2033.5,0.56909675]
[1773170909666,0.60651125,2034.4,2033.5,0.56909675]
[1773170911173,0.60053716,2034.5,2033.5,0.56909675]
[1773170911673,0.60053716,2034.9,2033.5,0.56909675]
[1773170912266,0.60560409,2034.9,2033.5,0.56909675]
[1773170913472,0.60053716,2034.7,2033.5,0.56909675]
[1773170913676,0.60053716,2034.7,2033.7,0.56909675]
[1773170914674,0.60053716,2034.5,2033.4,0.56909675]
[1773170914873,0.60053716,2034.3,2033.4,0.56909675]
[1773170915274,0.60053716,2034.8,2033.4,0.56909675]
[1773170915980,0.60053716,2034.8,2033.6,0.56909675]
[1773170918884,0.60053716,2034.8,2033.8,0.56909675]
[1773170919889,0.60053716,2034.8,2033.9,0.56909675]
[1773170920785,0.24572,2034.7,2033.9,0.56909675]
[1773170920987,0.60053716,2034.6,2033.5,0.56909675]
[1773170921887,0.60053716,2034.4,2033.5,0.56909675]
[1773170922291,0.00506693,2034.9,2033.3,0.5754211]
[1773170922292,0.60053716,2034.2,2033.3,0.5754211]
[1773170923494,0.60053716,2034.7,2033.3,0.5754211]
[1773170926092,0.60053716,2034.7,2033.5,0.56909675]
[1773170927491,0.5850455,2034.5,2033.5,0.56909675]
[1773170928302,0.5850455,2034.5,2033.6,0.60225242]
[1773170928599,0.5850455,2034.5,2033.8,0.60225242]
[1773170932597,0.5850455,2034.5,2033.6,0.55422892]
[1773170932896,0.5850455,2034.5,2033.5,0.55422892]
[1773170935294,0.8307955,2034.5,2033.5,0.55422892]
[1773170935502,0.57227851,2034.4,2033.5,0.55422892]
[1773170937099,0.57227851,2034.2,2033.5,0.55422892]
[1773170938497,0.57227851,2034.2,2033.3,0.56055327]
[1773170939803,0.57227851,2034.6,2033.5,0.55422892]
[1773170940002,0.57227851,2034.6,2033.7,0.55422892]
[1773170942198,0.57227851,2034.8,2033.8,0.55422892]
[1773170942501,0.57734544,2034.9,2033.9,0.55422892]
[1773170943406,0.57734544,2034.9,2034.0,0.55422892]
[1773170943606,0.57734544,2034.9,2034.2,0.55422892]
[1773170944005,0.00506693,2034.9,2034.2,0.55422892]
[1773170944407,0.57734544,2034.9,2034.2,0.55422892]
[1773170946205,0.00506693,2034.9,2034.2,0.55422892]
[1773170947410,0.57227851,2035.2,2034.2,0.55422892]
[1773170948411,0.57633651,2035.2,2034.2,0.55422892]
[1773170954003,0.57633651,2035.2,2034.3,0.55422892]
[1773170958416,0.57227851,2035.1,2034.3,0.55422892]
[1773170958618,0.57227851,2034.9,2034.0,0.55422892]
[1773170959413,0.59072245,2034.7,2033.8,0.54473102]
[1773170962918,0.59072245,2034.7,2033.7,0.54473102]
[1773170963318,0.2458,2034.1,2033.3,0.55105537]
[1773170963619,0.59072245,2034.0,2033.3,0.55105537]
[1773170963814,0.59072245,2034.5,2033.3,0.55105537]
[1773170965017,0.59072245,2034.5,2033.4,0.54473102]
[1773170967921,0.59072245,2034.3,2033.4,0.54473102]
[1773170968323,0.59072245,2034.1,2033.0,0.54473102]
[1773170968525,0.59072245,2033.9,2033.0,0.54473102]
[1773170969222,0.59072245,2033.7,2033.0,0.54473102]
[1773170969422,0.59474127,2033.7,2033.0,0.5496714]
[1773170971425,0.00401882,2033.7,2033.0,0.5496714]
[1773170971826,0.59072245,2034.1,2033.0,0.5496714]
[1773170972527,0.59072245,2034.1,2033.2,0.54473102]
[1773170972729,0.59584622,2034.1,2033.2,0.54473102]
[1773170975633,0.59072245,2033.9,2033.1,6.438]
[1773170975924,0.59072245,2033.9,2033.0,0.5496714]
[1773170976331,0.59072245,2033.7,2033.0,0.5496714]
[1773170982538,0.59072245,2033.5,2032.7,0.54473102]
[1773170983144,0.59072245,2033.3,2032.3,0.54473102]
[1773170983535,0.59072245,2032.9,2032.3,0.00581799]
[1773170983742,0.59072245,2032.9,2031.8,0.54473102]
[1773170984639,0.59072245,2032.9,2031.8,0.54966175]
[1773170985943,6.68392,2033.0,2031.8,0.54966175]
[1773170985944,0.59072245,2032.7,2031.8,0.54966175]
[1773170986343,0.59072245,2032.7,2031.8,0.00493073]
[1773170986943,0.57115308,2032.3,2031.3,0.5568489]
[1773170987143,0.57115308,2032.1,2031.3,0.5568489]
[1773170987343,0.57115308,2032.3,2031.3,0.5568489]
[1773170987941,0.57712727,2032.3,2031.3,0.56308879]
[1773170989738,0.57712727,2032.3,2031.4,0.55611102]
[1773170990349,0.00597419,2032.3,2031.4,0.55611102]
[1773170990954,0.00597419,2032.3,2031.6,0.55611102]
[1773170991151,0.54875453,2032.6,2031.6,0.55611102]
[1773170991753,0.54875453,2032.8,2031.8,0.55611102]
[1773170992156,0.5535005,2032.8,2031.8,0.55611102]
[1773170998057,0.5535005,2032.8,2031.5,0.55611102]
[1773170998658,0.54875453,2032.7,2031.5,0.55611102]
[1773170999961,0.54875453,2032.7,2031.7,0.55611102]
[1773171000663,0.54875453,2032.5,2031.3,0.56235091]
[1773171001655,0.54875453,2032.3,2031.3,0.56235091]
[1773171002454,0.54875453,2032.1,2031.3,0.00623989]
[1773171002856,0.54875453,2031.9,2031.0,0.55611102]
[1773171003059,0.54875453,2031.9,2030.7,0.55611102]
[1773171003263,0.54875453,2031.9,2030.8,0.24619]
[1773171003458,0.54875453,2031.9,2030.9,0.55611102]
[1773171003958,0.54875453,2031.9,2030.9,0.56011109]
[1773171004359,0.24604,2032.1,2031.1,0.55611102]
[1773171004360,0.54875453,2032.1,2031.1,0.55611102]
[1773171004766,0.54875453,2032.1,2031.3,0.55611102]
[1773171005359,0.54875453,2032.1,2030.9,0.00400007]
[1773171005360,0.54875453,2032.1,2031.0,0.55611102]
[1773171005661,0.54875453,2032.3,2031.2,0.55611102]
[1773171008662,0.24601,2032.3,2031.2,0.55611102]
[1773171008862,0.54875453,2032.2,2031.2,0.55611102]
[1773171010065,0.54875453,2032.0,2031.2,0.55611102]
[1773171010464,0.54875453,2031.8,2031.0,0.55611102]
[1773171010672,0.54875453,2031.8,2030.9,0.00400007]
[1773171010868,0.54875453,2031.6,2030.9,0.00400007]
[1773171011265,0.54875453,2031.4,2030.3,0.55611102]
[1773171012373,0.54875453,2031.4,2030.3,0.5617305]
[1773171013661,0.54875453,2031.4,2030.5,0.55611102]
[1773171015269,10.11883599,2032.1,2030.6,0.24622]
[1773171015270,0.54875453,2032.0,2030.6,0.24622]
[1773171015574,0.54875453,2031.8,2030.7,0.55611102]
[1773171016072,0.54875453,2031.7,2030.7,0.55611102]
[1773171017070,0.54875453,2031.5,2030.5,0.55611102]
[1773171017672,0.54875453,2031.3,2030.5,0.55611102]
[1773171017871,0.5538483,2031.3,2030.5,0.55611102]
[1773171020770,0.00509377,2031.3,2030.7,0.56761845]
[1773171020970,0.5773437,2031.8,2030.7,0.56761845]
[1773171021772,0.5773437,2031.8,2030.3,0.00561948]
[1773171021773,0.5773437,2031.8,2030.9,0.56761845]
[1773171021970,0.00517877,2031.8,2031.1,0.56761845]
[1773171022275,0.5773437,2032.1,2031.1,0.56761845]
[1773171022470,0.5773437,2032.1,2031.3,0.56761845]
[1773171022672,0.5773437,2032.1,2030.8,53.29634]
[1773171022673,0.5773437,2032.7,2031.5,0.56761845]
[1773171023176,0.5773437,2032.7,2031.7,0.56761845]
[1773171023373,0.00369137,2032.7,2031.9,0.56761845]
[1773171023581,0.00369137,2032.7,2031.9,0.57159175]
[1773171024566,0.5773437,2033.1,2031.9,0.57159175]
[1773171025771,0.58195652,2033.1,2031.9,0.57159175]
[1773171026779,0.58195652,2033.1,2032.1,0.56761845]
[1773171027174,0.58195652,2033.1,2032.2,0.56761845]
[1773171030971,0.5773437,2032.6,2031.1,0.56761845]
[1773171031170,0.5773437,2032.4,2031.1,0.56761845]
[1773171031976,0.5773437,2032.4,2031.1,0.57260124]
[1773171033269,0.5773437,2032.9,2031.7,0.56761845]
[1773171033875,0.00461282,2033.1,2032.1,0.56761845]
[1773171034275,0.00461282,2033.1,2032.3,0.56761845]
[1773171036785,0.58195652,2033.1,2032.3,0.56761845]
[1773171036986,0.58195652,2033.1,2032.0,0.56761845]
[1773171036987,0.5773437,2032.9,2032.0,0.56761845]
[1773171037385,0.5773437,2032.7,2032.0,0.56761845]
[1773171037887,0.5773437,2032.7,2031.6,0.56761845]